fUST/lending_fUST_20250727
["ID","MTS","AMOUNT","RATE_DAILY","PERIOD"]
[375226944,1753591842371,-506.49704136,0.00019178,2]
[375226945,1753591842380,-460.0,0.00019178,2]
[375226946,1753591842486,-460.0,0.00019178,2]
[375226947,1753591842495,-460.0,0.00019178,2]
[375226948,1753591842505,-460.0,0.00019178,2]
[375226949,1753591842514,-460.0,0.00019178,2]
[375226950,1753591842523,-460.0,0.00019178,2]
[375226951,1753591842532,-461.00911763,0.00019178,2]
[375226952,1753591842542,-758.57,0.00019178,2]
[375226953,1753591842551,-563.12,0.00019178,2]
[375226954,1753591842560,-460.0,0.00019178,2]
[375226955,1753591842570,-460.0,0.00019178,2]
[375226956,1753591842579,-460.0,0.00019178,2]
[375226957,1753591842588,-460.0,0.00019178,2]
[375226958,1753591842597,-460.0,0.00019178,2]
[375226959,1753591842607,-460.0,0.00019178,2]
[375226960,1753591842616,-460.0,0.00019178,2]
[375226961,1753591842625,-500.0,0.00019178,2]
[375226962,1753591842634,-500.0,0.00019178,2]
[375226963,1753591842643,-500.0,0.00019178,2]
[375226964,1753591842653,-500.0,0.00019178,2]
[375226965,1753591842662,-500.0,0.00019178,2]
[375226966,1753591842671,-500.0,0.00019178,2]
[375226967,1753591842680,-500.0,0.00019178,2]
[375226969,1753591842690,-500.0,0.00019178,2]
[375226970,1753591842699,-500.0,0.00019178,2]
[375226972,1753591842708,-574.84,0.00019178,2]
[375226974,1753591842718,-460.0,0.00019178,2]
[375226976,1753591842732,-460.0,0.00019178,2]
[375226978,1753591842742,-711.63,0.00019178,2]
[375226980,1753591842752,-1845.29,0.00019178,2]
[375226982,1753591842762,-460.0,0.00019178,2]
[375226984,1753591842771,-537.76,0.00019178,2]
[375226986,1753591842781,-636.42,0.00019178,2]
[375226988,1753591842790,-460.0,0.00019178,2]
[375226990,1753591842799,-460.0,0.00019178,2]
[375226992,1753591842808,-460.0,0.00019178,2]
[375226994,1753591842819,-460.0,0.00019178,2]
[375226996,1753591842828,-460.0,0.00019178,2]
[375226998,1753591842836,-460.0,0.00019178,2]
[375227000,1753591842845,-460.0,0.00019178,2]
[375227002,1753591842855,-460.0,0.00019178,2]
[375227004,1753591842866,-787.68,0.00019178,2]
[375227006,1753591842875,-460.0,0.00019178,2]
[375227008,1753591842885,-247.1810653,0.00019178,2]
[375227010,1753591842895,-460.0,0.00019178,2]
[375227012,1753591842904,-460.0,0.00019178,2]
[375227014,1753591842913,-6023.97,0.00019178,2]
[375227016,1753591842923,-818.54,0.00019178,2]
[375227018,1753591842932,-460.0,0.00019178,2]
[375227020,1753591842941,-921.26,0.00019178,2]
[375227022,1753591842950,-460.0,0.00019178,2]
[375227024,1753591842959,-460.0,0.00019178,2]
[375227026,1753591842968,-460.0,0.00019178,2]
[375227027,1753591842978,-460.0,0.00019178,2]
[375227029,1753591842987,-460.0,0.00019178,2]
[375227032,1753591842998,-460.0,0.00019178,2]
[375227035,1753591843008,-460.0,0.00019178,2]
[375227038,1753591843019,-460.0,0.00019178,2]
[375227041,1753591843028,-460.0,0.00019178,2]
[375227045,1753591843038,-460.0,0.00019178,2]
[375227047,1753591843048,-460.0,0.00019178,2]
[375227050,1753591843057,-460.0,0.00019178,2]
[375227053,1753591843067,-460.0,0.00019178,2]
[375227057,1753591843076,-460.0,0.00019178,2]
[375227061,1753591843087,-231.18498961,0.00019178,2]
[375227064,1753591843096,-460.0,0.00019178,2]
[375227067,1753591843105,-460.0,0.00019178,2]
[375227070,1753591843114,-460.0,0.00019178,2]
[375227073,1753591843123,-460.0,0.00019178,2]
[375227076,1753591843133,-460.0,0.00019178,2]
[375227079,1753591843142,-460.0,0.00019178,2]
[375227082,1753591843151,-1000.0,0.00019221,2]
[375227085,1753591843160,-500.0,0.00019221,2]
[375227088,1753591843170,-1000.0,0.00019221,2]
[375227091,1753591843179,-1000.0,0.00019221,2]
[375227094,1753591843188,-1000.0,0.00019221,2]
[375227097,1753591843198,-2459.7334531,0.00019306,2]
[375227100,1753591843207,-167.48767327,0.00019329,2]
[375227103,1753591843216,-440.98178008,0.00019422,2]
[375227105,1753591843226,-460.0,0.00019452,2]
[375227107,1753591843235,-460.0,0.00019452,2]
[375227109,1753591843244,-460.0,0.00019452,2]
[375227111,1753591843253,-460.0,0.00019452,2]
[375227113,1753591843263,-460.0,0.00019452,2]
[375227115,1753591843272,-462.76082798,0.00019452,2]
[375227117,1753591843282,-402.32096043,0.00019452,2]
[375227119,1753591843291,-460.0,0.00019452,2]
[375227121,1753591843301,-3053.11,0.00019452,2]
[375227123,1753591843310,-460.0,0.00019452,2]
[375227125,1753591843319,-460.0,0.00019452,2]
[375227127,1753591843329,-460.0,0.00019452,2]
[375227129,1753591843339,-460.0,0.00019452,2]
[375227131,1753591843348,-391.01736208,0.00019452,2]
[375227133,1753591843358,-460.0,0.00019452,2]
[375227135,1753591843367,-460.0,0.00019452,2]
[375227137,1753591843378,-1108.1,0.00019452,2]
[375227139,1753591843388,-460.0,0.00019452,2]
[375227141,1753591843398,-460.0,0.00019452,2]
[375227143,1753591843407,-363.55417789,0.00019452,2]
[375227145,1753591843416,-460.0,0.00019452,2]
[375227147,1753591843426,-460.0,0.00019452,2]
[375227149,1753591843434,-552.26,0.00019452,2]
[375227151,1753591843444,-460.0,0.00019452,2]
[375227153,1753591843453,-460.0,0.00019452,2]
[375227155,1753591843462,-460.0,0.00019452,2]
[375227157,1753591843471,-460.0,0.00019452,2]
[375227159,1753591843480,-277.92981364,0.00019452,2]
[375227161,1753591843489,-460.0,0.00019452,2]
[375227163,1753591843498,-460.0,0.00019452,2]
[375227165,1753591843507,-460.0,0.00019452,2]
[375227166,1753591843517,-1475.97,0.00019452,2]
[375227168,1753591843526,-460.0,0.00019452,2]
[375227171,1753591843535,-460.0,0.00019452,2]
[375227172,1753591843545,-460.0,0.00019452,2]
[375227174,1753591843555,-460.0,0.00019452,2]
[375227176,1753591843564,-460.0,0.00019452,2]
[375227178,1753591843573,-460.0,0.00019452,2]
[375227180,1753591843583,-435.67765697,0.00019452,2]
[375227182,1753591843592,-460.0,0.00019452,2]
[375227185,1753591843601,-460.0,0.00019452,2]
[375227188,1753591843610,-460.0,0.00019452,2]
[375227190,1753591843620,-154.39640782,0.00019452,2]
[375227192,1753591843630,-460.0,0.00019452,2]
[375227194,1753591843639,-460.0,0.00019452,2]
[375227196,1753591843648,-460.0,0.00019452,2]
[375227198,1753591843657,-482.96,0.00019452,2]
[375227200,1753591843667,-460.0,0.00019452,2]
[375227202,1753591843676,-460.0,0.00019452,2]
[375227204,1753591843685,-608.14,0.00019452,2]
[375227206,1753591843694,-460.0,0.00019452,2]
[375227208,1753591843704,-460.0,0.00019452,2]
[375227210,1753591843713,-460.0,0.00019452,2]
[375227212,1753591843724,-460.0,0.00019452,2]
[375227214,1753591843734,-460.0,0.00019452,2]
[375227216,1753591843743,-460.0,0.00019452,2]
[375227218,1753591843753,-460.0,0.00019452,2]
[375227220,1753591843762,-460.0,0.00019452,2]
[375227222,1753591843772,-460.0,0.00019452,2]
[375227224,1753591843781,-460.0,0.00019452,2]
[375227226,1753591843791,-460.0,0.00019452,2]
[375227228,1753591843800,-459.97995163,0.00019452,2]
[375227230,1753591843809,-844.88,0.00019452,2]
[375227232,1753591843818,-464.17826561,0.00019452,2]
[375227234,1753591843827,-460.0,0.00019452,2]
[375227235,1753591843837,-460.0,0.00019452,2]
[375227237,1753591843846,-460.0,0.00019452,2]
[375227239,1753591843855,-460.0,0.00019452,2]
[375227241,1753591843865,-818.66,0.00019452,2]
[375227243,1753591843874,-460.0,0.00019452,2]
[375227246,1753591843883,-460.0,0.00019452,2]
[375227249,1753591843894,-880.14,0.00019452,2]
[375227251,1753591843902,-460.0,0.00019452,2]
[375227253,1753591843912,-460.0,0.00019452,2]
[375227255,1753591843921,-2120.97,0.00019452,2]
[375227258,1753591843930,-460.0,0.00019452,2]
[375227260,1753591843939,-460.0,0.00019452,2]
[375227262,1753591843948,-460.0,0.00019452,2]
[375227264,1753591843957,-460.0,0.00019452,2]
[375227266,1753591843965,-502.71767957,0.00019452,2]
[375227268,1753591843974,-460.0,0.00019452,2]
[375227270,1753591843983,-460.0,0.00019452,2]
[375227272,1753591843992,-460.0,0.00019452,2]
[375227274,1753591844002,-460.0,0.00019452,2]
[375227276,1753591844011,-460.0,0.00019452,2]
[375227278,1753591844019,-460.0,0.00019452,2]
[375227280,1753591844028,-622.07,0.00019452,2]
[375227282,1753591844037,-460.0,0.00019452,2]
[375227284,1753591844047,-460.0,0.00019452,2]
[375227286,1753591844055,-598.1430451,0.00019452,2]
[375227288,1753591844064,-460.0,0.00019452,2]
[375227290,1753591844074,-460.0,0.00019452,2]
[375227292,1753591844083,-564.9,0.00019452,2]
[375227294,1753591844093,-460.0,0.00019452,2]
[375227296,1753591844102,-460.0,0.00019452,2]
[375227298,1753591844111,-460.0,0.00019452,2]
[375227299,1753591844120,-622.74,0.00019452,2]
[375227301,1753591844130,-645.93,0.00019452,2]
[375227303,1753591844139,-460.0,0.00019452,2]
[375227305,1753591844148,-460.0,0.00019452,2]
[375227307,1753591844157,-460.0,0.00019452,2]
[375227309,1753591844167,-460.0,0.00019452,2]
[375227311,1753591844176,-460.0,0.00019452,2]
[375227313,1753591844185,-460.0,0.00019452,2]
[375227315,1753591844194,-460.0,0.00019452,2]
[375227317,1753591844204,-245.36988716,0.00019452,2]
[375227319,1753591844213,-460.0,0.00019452,2]
[375227321,1753591844222,-399.14575647,0.00019452,2]
[375227323,1753591844231,-2456.43,0.00019452,2]
[375227325,1753591844241,-460.0,0.00019452,2]
[375227327,1753591844250,-460.0,0.00019452,2]
[375227329,1753591844259,-462.61141262,0.00019452,2]
[375227331,1753591844268,-460.0,0.00019452,2]
[375227333,1753591844277,-472.58164815,0.00019452,2]
[375227335,1753591844287,-938.04,0.00019452,2]
[375227337,1753591844297,-460.0,0.00019452,2]
[375227339,1753591844306,-460.0,0.00019452,2]
[375227341,1753591844316,-460.0,0.00019452,2]
[375227343,1753591844325,-809.77,0.00019452,2]
[375227345,1753591844334,-460.0,0.00019452,2]
[375227347,1753591844343,-460.0,0.00019452,2]
[375227349,1753591844353,-460.0,0.00019452,2]
[375227351,1753591844362,-460.0,0.00019452,2]
[375227353,1753591844371,-525.99,0.00019452,2]
[375227355,1753591844381,-460.0,0.00019452,2]
[375227357,1753591844389,-460.0,0.00019452,2]
[375227359,1753591844399,-488.79,0.00019452,2]
[375227361,1753591844408,-773.1,0.00019452,2]
[375227363,1753591844417,-469.67885885,0.00019452,2]
[375227365,1753591844427,-460.0,0.00019452,2]
[375227367,1753591844436,-845.26,0.00019452,2]
[375227369,1753591844445,-460.0,0.00019452,2]
[375227371,1753591844455,-482.46981579,0.00019452,2]
[375227373,1753591844464,-460.0,0.00019452,2]
[375227375,1753591844473,-460.0,0.00019452,2]
[375227377,1753591844483,-460.0,0.00019452,2]
[375227379,1753591844492,-460.0,0.00019452,2]
[375227381,1753591844501,-460.0,0.00019452,2]
[375227383,1753591844511,-460.0,0.00019452,2]
[375227385,1753591844520,-460.0,0.00019452,2]
[375227387,1753591844529,-460.0,0.00019452,2]
[375227389,1753591844539,-798.34,0.00019452,2]
[375227391,1753591844548,-389.09419639,0.00019452,2]
[375227393,1753591844558,-460.0,0.00019452,2]
[375227395,1753591844567,-584.78,0.00019452,2]
[375227397,1753591844576,-672.53,0.00019452,2]
[375227399,1753591844586,-193.03345002,0.00019452,2]
[375227401,1753591844595,-2999.76,0.00019452,2]
[375227403,1753591844603,-460.0,0.00019452,2]
[375227414,1753591844613,-1147.37,0.00019452,2]
[375227417,1753591844714,-460.0,0.00019452,2]
[375227418,1753591844726,-464.3162045,0.00019452,2]
[375227420,1753591844736,-460.0,0.00019452,2]
[375227422,1753591844745,-460.0,0.00019452,2]
[375227424,1753591844755,-460.0,0.00019452,2]
[375227426,1753591844764,-460.0,0.00019452,2]
[375227428,1753591844773,-790.12,0.00019452,2]
[375227430,1753591844783,-460.0,0.00019452,2]
[375227433,1753591844792,-730.21,0.00019452,2]
[375227434,1753591844801,-2109.78,0.00019452,2]
[375227436,1753591844811,-836.26,0.00019452,2]
[375227438,1753591844820,-460.0,0.00019452,2]
[375227441,1753591844830,-560.59,0.00019452,2]
[375227442,1753591844840,-460.0,0.00019452,2]
[375227444,1753591844852,-460.0,0.00019452,2]
[375227446,1753591844862,-581.12,0.00019452,2]
[375227447,1753591844872,-460.0,0.00019452,2]
[375227448,1753591844881,-340.57554693,0.00019452,2]
[375227449,1753591844891,-460.0,0.00019452,2]
[375227450,1753591844900,-932.6,0.00019452,2]
[375227452,1753591844909,-460.0,0.00019452,2]
[375227454,1753591844919,-2465.52,0.00019452,2]
[375227456,1753591844928,-594.88,0.00019452,2]
[375227458,1753591844937,-788.56,0.00019452,2]
[375227460,1753591844947,-460.0,0.00019452,2]
[375227462,1753591844956,-1130.94,0.00019452,2]
[375227464,1753591844965,-460.0,0.00019452,2]
[375227466,1753591844974,-460.0,0.00019452,2]
[375227468,1753591844983,-426.56973459,0.00019452,2]
[375227470,1753591844992,-460.0,0.00019452,2]
[375227472,1753591845001,-659.51,0.00019452,2]
[375227474,1753591845010,-464.84625056,0.00019452,2]
[375227476,1753591845019,-460.0,0.00019452,2]
[375227478,1753591845029,-460.0,0.00019452,2]
[375227480,1753591845038,-460.0,0.00019452,2]
[375227482,1753591845048,-460.0,0.00019452,2]
[375227484,1753591845057,-460.0,0.00019452,2]
[375227486,1753591845066,-460.0,0.00019452,2]
[375227487,1753591845076,-460.0,0.00019452,2]
[375227489,1753591845086,-455.84557841,0.00019452,2]
[375227491,1753591845095,-1707.22,0.00019452,2]
[375227492,1753591845104,-460.0,0.00019452,2]
[375227493,1753591845114,-460.0,0.00019452,2]
[375227494,1753591845123,-460.0,0.00019452,2]
[375227495,1753591845132,-460.0,0.00019452,2]
[375227496,1753591845141,-460.0,0.00019452,2]
[375227497,1753591845150,-460.0,0.00019452,2]
[375227498,1753591845159,-460.0,0.00019452,2]
[375227499,1753591845168,-460.0,0.00019452,2]
[375227500,1753591845178,-548.44,0.00019452,2]
[375227501,1753591845187,-460.0,0.00019452,2]
[375227503,1753591845196,-844.26,0.00019452,2]
[375227505,1753591845205,-460.0,0.00019452,2]
[375227507,1753591845214,-460.0,0.00019452,2]
[375227509,1753591845223,-251.05750764,0.00019452,2]
[375227511,1753591845232,-460.0,0.00019452,2]
[375227513,1753591845242,-460.0,0.00019452,2]
[375227515,1753591845251,-460.0,0.00019452,2]
[375227517,1753591845261,-460.0,0.00019452,2]
[375227519,1753591845270,-460.0,0.00019452,2]
[375227521,1753591845280,-460.0,0.00019452,2]
[375227523,1753591845289,-758.57,0.00019452,2]
[375227525,1753591845299,-563.12,0.00019452,2]
[375227527,1753591845308,-460.0,0.00019452,2]
[375227529,1753591845317,-173.45800975,0.00019452,2]
[375227531,1753591845327,-460.0,0.00019452,2]
[375227533,1753591845337,-460.0,0.00019452,2]
[375227535,1753591845346,-460.0,0.00019452,2]
[375227537,1753591845355,-460.0,0.00019452,2]
[375227539,1753591845365,-460.0,0.00019452,2]
[375227541,1753591845374,-711.63,0.00019452,2]
[375227543,1753591845384,-1845.29,0.00019452,2]
[375227545,1753591845393,-460.0,0.00019452,2]
[375227547,1753591845404,-537.76,0.00019452,2]
[375227548,1753591845413,-636.42,0.00019452,2]
[375227550,1753591845422,-460.0,0.00019452,2]
[375227552,1753591845431,-460.0,0.00019452,2]
[375227554,1753591845440,-787.68,0.00019452,2]
[375227556,1753591845451,-471.92079923,0.00019452,2]
[375227558,1753591845460,-460.0,0.00019452,2]
[375227560,1753591845470,-6023.97,0.00019452,2]
[375227562,1753591845479,-818.54,0.00019452,2]
[375227564,1753591845488,-460.0,0.00019452,2]
[375227566,1753591845497,-921.26,0.00019452,2]
[375227568,1753591845507,-460.0,0.00019452,2]
[375227570,1753591845518,-460.0,0.00019452,2]
[375227572,1753591845528,-460.0,0.00019452,2]
[375227574,1753591845538,-460.0,0.00019452,2]
[375227576,1753591845548,-460.0,0.00019452,2]
[375227578,1753591845558,-460.0,0.00019452,2]
[375227580,1753591845567,-460.0,0.00019452,2]
[375227582,1753591845577,-460.0,0.00019452,2]
[375227584,1753591845586,-460.0,0.00019452,2]
[375227586,1753591845595,-460.0,0.00019452,2]
[375227588,1753591845604,-460.0,0.00019452,2]
[375227590,1753591845614,-460.0,0.00019452,2]
[375227592,1753591845623,-460.0,0.00019452,2]
[375227594,1753591845633,-460.0,0.00019452,2]
[375227596,1753591845643,-151.0,0.000195,2]
[375227598,1753591845653,-151.0,0.000195,2]
[375227600,1753591845663,-151.0,0.000196,2]
[375227602,1753591845672,-150.0,0.00019656,2]
[375227604,1753591845683,-151.0,0.000197,2]
[375227606,1753591845692,-151.0,0.000197,2]
[375227608,1753591845702,-286.04626739,0.00019721,2]
[375227610,1753591845711,-1000.0,0.00019721,2]
[375227612,1753591845721,-1000.0,0.00019721,2]
[375227614,1753591845734,-460.0,0.00019726,2]
[375227616,1753591845743,-460.0,0.00019726,2]
[375227618,1753591845752,-460.0,0.00019726,2]
[375227620,1753591845761,-460.0,0.00019726,2]
[375227622,1753591845772,-460.0,0.00019726,2]
[375227624,1753591845782,-460.0,0.00019726,2]
[375227626,1753591845791,-3053.11,0.00019726,2]
[375227628,1753591845801,-460.0,0.00019726,2]
[375227630,1753591845811,-460.0,0.00019726,2]
[375227632,1753591845820,-221.0,0.00019726,2]
[375227634,1753591845835,-460.0,0.00019726,2]
[375227636,1753591845843,-460.0,0.00019726,2]
[375227638,1753591845854,-460.0,0.00019726,2]
[375227640,1753591845864,-1108.1,0.00019726,2]
[375227642,1753591845873,-460.0,0.00019726,2]
[375227644,1753591845882,-460.0,0.00019726,2]
[375227646,1753591845892,-552.26,0.00019726,2]
[375227648,1753591845903,-460.0,0.00019726,2]
[375227650,1753591845912,-460.0,0.00019726,2]
[375227652,1753591845922,-460.0,0.00019726,2]
[375227654,1753591845931,-460.0,0.00019726,2]
[375227656,1753591845940,-460.0,0.00019726,2]
[375227658,1753591845950,-1475.97,0.00019726,2]
[375227660,1753591845960,-460.0,0.00019726,2]
[375227662,1753591845969,-460.0,0.00019726,2]
[375227664,1753591845979,-460.0,0.00019726,2]
[375227667,1753591845988,-460.0,0.00019726,2]
[375227669,1753591845997,-460.0,0.00019726,2]
[375227671,1753591846006,-460.0,0.00019726,2]
[375227673,1753591846015,-482.96,0.00019726,2]
[375227675,1753591846024,-460.0,0.00019726,2]
[375227677,1753591846033,-460.0,0.00019726,2]
[375227680,1753591846042,-608.14,0.00019726,2]
[375227682,1753591846051,-460.0,0.00019726,2]
[375227684,1753591846061,-460.0,0.00019726,2]
[375227686,1753591846070,-460.0,0.00019726,2]
[375227688,1753591846079,-460.0,0.00019726,2]
[375227690,1753591846089,-460.0,0.00019726,2]
[375227692,1753591846099,-460.0,0.00019726,2]
[375227694,1753591846108,-844.88,0.00019726,2]
[375227696,1753591846117,-460.0,0.00019726,2]
[375227698,1753591846127,-460.0,0.00019726,2]
[375227700,1753591846136,-460.0,0.00019726,2]
[375227702,1753591846145,-267.41374248,0.00019726,2]
[375227704,1753591846154,-818.66,0.00019726,2]
[375227706,1753591846164,-460.0,0.00019726,2]
[375227708,1753591846174,-460.0,0.00019726,2]
[375227710,1753591846183,-880.14,0.00019726,2]
[375227712,1753591846192,-460.0,0.00019726,2]
[375227714,1753591846201,-460.0,0.00019726,2]
[375227716,1753591846211,-2120.97,0.00019726,2]
[375227718,1753591846220,-460.0,0.00019726,2]
[375227720,1753591846229,-460.0,0.00019726,2]
[375227722,1753591846238,-460.0,0.00019726,2]
[375227724,1753591846247,-460.0,0.00019726,2]
[375227726,1753591846257,-460.0,0.00019726,2]
[375227728,1753591846267,-460.0,0.00019726,2]
[375227730,1753591846276,-460.0,0.00019726,2]
[375227732,1753591846286,-460.0,0.00019726,2]
[375227734,1753591846295,-622.07,0.00019726,2]
[375227736,1753591846304,-460.0,0.00019726,2]
[375227738,1753591846314,-460.0,0.00019726,2]
[375227740,1753591846323,-460.0,0.00019726,2]
[375227742,1753591846332,-460.0,0.00019726,2]
[375227744,1753591846342,-564.9,0.00019726,2]
[375227746,1753591846351,-460.0,0.00019726,2]
[375227748,1753591846360,-460.0,0.00019726,2]
[375227750,1753591846369,-460.0,0.00019726,2]
[375227752,1753591846378,-622.74,0.00019726,2]
[375227754,1753591846387,-645.93,0.00019726,2]
[375227756,1753591846396,-460.0,0.00019726,2]
[375227758,1753591846405,-460.0,0.00019726,2]
[375227760,1753591846414,-460.0,0.00019726,2]
[375227762,1753591846424,-460.0,0.00019726,2]
[375227764,1753591846438,-460.0,0.00019726,2]
[375227766,1753591846447,-460.0,0.00019726,2]
[375227768,1753591846456,-460.0,0.00019726,2]
[375227770,1753591846465,-202.86026692,0.00019726,2]
[375227772,1753591846475,-2456.43,0.00019726,2]
[375227774,1753591846484,-460.0,0.00019726,2]
[375227776,1753591846494,-460.0,0.00019726,2]
[375227778,1753591846503,-938.04,0.00019726,2]
[375227780,1753591846512,-460.0,0.00019726,2]
[375227782,1753591846522,-460.0,0.00019726,2]
[375227784,1753591846531,-809.77,0.00019726,2]
[375227785,1753591846541,-460.0,0.00019726,2]
[375227787,1753591846551,-460.0,0.00019726,2]
[375227790,1753591846560,-460.0,0.00019726,2]
[375227793,1753591846570,-460.0,0.00019726,2]
[375227796,1753591846579,-525.99,0.00019726,2]
[375227799,1753591846589,-460.0,0.00019726,2]
[375227802,1753591846598,-488.79,0.00019726,2]
[375227806,1753591846608,-773.1,0.00019726,2]
[375227810,1753591846617,-460.0,0.00019726,2]
[375227812,1753591846626,-845.26,0.00019726,2]
[375227816,1753591846635,-460.0,0.00019726,2]
[375227819,1753591846644,-460.0,0.00019726,2]
[375227821,1753591846654,-460.0,0.00019726,2]
[375227824,1753591846663,-460.0,0.00019726,2]
[375227826,1753591846672,-460.0,0.00019726,2]
[375227828,1753591846681,-460.0,0.00019726,2]
[375227830,1753591846690,-460.0,0.00019726,2]
[375227851,1753591846788,-798.34,0.00019726,2]
[375227854,1753591846798,-460.0,0.00019726,2]
[375227857,1753591846807,-584.78,0.00019726,2]
[375227860,1753591846817,-672.53,0.00019726,2]
[375227863,1753591846827,-2999.76,0.00019726,2]
[375227866,1753591846836,-460.0,0.00019726,2]
[375227869,1753591846848,-1147.37,0.00019726,2]
[375227872,1753591846857,-460.0,0.00019726,2]
[375227875,1753591846867,-460.0,0.00019726,2]
[375227878,1753591846876,-460.0,0.00019726,2]
[375227880,1753591846885,-460.0,0.00019726,2]
[375227883,1753591846894,-313.40299718,0.00019726,2]
[375227887,1753591846904,-790.12,0.00019726,2]
[375227890,1753591846914,-460.0,0.00019726,2]
[375227892,1753591846923,-730.21,0.00019726,2]
[375227895,1753591846934,-2109.78,0.00019726,2]
[375227898,1753591846944,-836.26,0.00019726,2]
[375227899,1753591846955,-460.0,0.00019726,2]
[375227902,1753591846965,-560.59,0.00019726,2]
[375227904,1753591846976,-460.0,0.00019726,2]
[375227905,1753591846987,-596.42531374,0.00019726,2]
[375227907,1753591846997,-581.12,0.00019726,2]
[375227910,1753591847008,-460.0,0.00019726,2]
[375227911,1753591847019,-460.0,0.00019726,2]
[375227914,1753591847029,-932.6,0.00019726,2]
[375227916,1753591847039,-460.0,0.00019726,2]
[375227917,1753591847048,-2465.52,0.00019726,2]
[375227919,1753591847058,-594.88,0.00019726,2]
[375227921,1753591847068,-788.56,0.00019726,2]
[375227924,1753591847078,-1130.94,0.00019726,2]
[375227926,1753591847087,-460.0,0.00019726,2]
[375227927,1753591847097,-460.0,0.00019726,2]
[375227930,1753591847106,-460.0,0.00019726,2]
[375227932,1753591847115,-659.51,0.00019726,2]
[375227934,1753591847124,-460.0,0.00019726,2]
[375227936,1753591847133,-460.0,0.00019726,2]
[375227937,1753591847143,-317.47886199,0.00019726,2]
[375227940,1753591847152,-460.0,0.00019726,2]
[375227941,1753591847162,-460.0,0.00019726,2]
[375227943,1753591847171,-1707.22,0.00019726,2]
[375227946,1753591847180,-460.0,0.00019726,2]
[375227948,1753591847190,-460.0,0.00019726,2]
[375227950,1753591847199,-460.0,0.00019726,2]
[375227952,1753591847208,-460.0,0.00019726,2]
[375227954,1753591847217,-460.0,0.00019726,2]
[375227956,1753591847226,-460.0,0.00019726,2]
[375227958,1753591847235,-460.0,0.00019726,2]
[375227959,1753591847244,-548.44,0.00019726,2]
[375227962,1753591847254,-460.0,0.00019726,2]
[375227963,1753591847263,-844.26,0.00019726,2]
[375227966,1753591847272,-460.0,0.00019726,2]
[375227968,1753591847282,-460.0,0.00019726,2]
[375227970,1753591847291,-460.0,0.00019726,2]
[375227972,1753591847301,-460.0,0.00019726,2]
[375227974,1753591847311,-460.0,0.00019726,2]
[375227975,1753591847321,-460.0,0.00019726,2]
[375227977,1753591847331,-758.57,0.00019726,2]
[375227980,1753591847341,-563.12,0.00019726,2]
[375227982,1753591847350,-460.0,0.00019726,2]
[375227983,1753591847359,-460.0,0.00019726,2]
[375227986,1753591847369,-460.0,0.00019726,2]